[Event "AI Cup Div-3 2023"]
[Site "Online"]
[Date "2023.09.28"]
[Round "57.3"]
[White "Robson, Ray"]
[Black "Sevian, Samuel"]
[Result "0-1"]
[Annotator "TA"]
[ECO "C83"]
[WhiteElo "2699"]
[BlackElo "2698"]
[PlyCount "98"]
[EventDate "2023.09.18"]
[EventType "k.o."]
[EventCountry "NET"]
[SourceTitle "playchess.com"]
[Source "ChessBase"]
[SourceQuality "1"]
[TimeControl "900+3"]

{[%evp 23,98,47,39,0,0,0,3,3,0,0,19,11,7,16,17,34,22,33,27,22,16,23,12,17,17,0,0,-14,-20,-12,-20,-41,-7,-37,0,0,0,-10,0,0,0,0,0,-13,0,-28,0,0,0,0,0,2,5,-49,-48,-246,-249,-229,-161,-253,-260,-512,-512,-683,-663,-703,-703,-703,-703,-697,-691,-703,-703,-697,-697,-4578,-1701]} 1. e4 {[%emt 0:00:09]} e5 {[%emt 0:04:42]} 2. Nf3 {[%emt 0:00:04]} Nc6 {[%emt 0:00:04]} 3. Bb5 {[%emt 0:00:05]} a6 {[%emt 0:00:03]} 4. Ba4 {[%emt 0:00:05]} Nf6 {[%emt 0:00:04]} 5. O-O {[%emt 0:00:06]} Nxe4 {[%emt 0:00:03]} 6. d4 {[%emt 0:00:06]} b5 {[%emt 0:00:04]} 7. Bb3 {[%emt 0:00:04]} d5 {[%emt 0:00:03]} 8. dxe5 {[%emt 0:00:04]} Be6 {[%emt 0:00:04]} 9. c3 {[%emt 0:00:20]} Be7 {[%emt 0:00:03]} 10. Nbd2 {[%emt 0:00:04][%cal Bb1d2,Bd2b3,Bb3d4][%mdl 32]} O-O {[%emt 0:00:06]} 11. Bc2 {[%emt 0:00:09]} f5 {[%emt 0:00:04]} 12. Nb3 {[%emt 0:00:06] 12.exf6 is the fancy move.} Qd7 {[%emt 0:00:04]} 13. Qe1 {[%emt 0:00:05] C83: Open Ruy Lopez: 9 c3 Be7.} Bf7 {[%emt 0:00:04]} 14. Nbd4 {[%emt 0:00:19] next Nxc6 is good for White.} Nd8 {[%emt 0:00:06] [#]} 15. e6 $146 {[%emt 0:00:04] The position is equal.} ({Predecessor:} 15. b4 Bh5 16. Bb2 Bxf3 17. Nxf3 Ne6 18. Rd1 c6 19. a4 Qc7 20. Nd4 Nxd4 21. cxd4 {½-½ So,W (2765)-Anand,V (2773) Tata Steel India blitz 2018 (1)}) 15... Bxe6 {[%emt 0:00:13]} (15... Nxe6 16. Ne5 Qe8 17. Nxf5 $14) 16. Ne5 {[%emt 0:00:09]} Qc8 {[%emt 0:00:11]} 17. f3 {[%emt 0:00:17]} Nd6 {[%emt 0:00:04]} 18. Nec6 {[%emt 0:00:25]} Nxc6 {[%emt 0:00:46]} 19. Qxe6+ {[%emt 0:00:06]} Qxe6 {[%emt 0:00:03]} 20. Nxe6 {[%emt 0:00:03]} Rfc8 {[%emt 0:00:04]} 21. Nf4 {[%emt 0:00:07]} d4 {[%emt 0:00:04]} 22. Nd5 {[%emt 0:00:04]} dxc3 {[%emt 0:00:45]} 23. bxc3 {[%emt 0:00:04]} g6 {[%emt 0:00:11]} 24. Bf4 {[%emt 0:00:26]} Nc4 {[%emt 0:00:19]} 25. Nxc7 {[%emt 0:00:41]} Bc5+ {[%emt 0:00:49]} 26. Kh1 {[%emt 0:00:04]} Ra7 {[%emt 0:00:04]} 27. Ne6 {[%emt 0:03:39]} Be3 {[%emt 0:00:13] [#] aiming for ...Re7.} 28. Rfe1 {[%emt 0:00:20]} (28. Rae1 $5 {[%cal Rf4e3]} Bb6 29. Bb3 $11) 28... Bxf4 {[%emt 0:00:12]} (28... Bb6 $5 {[%cal Rb6a5]}) 29. Nxf4 {[%emt 0:00:03]} Re7 {[%emt 0:00:25]} 30. Bb3 {[%emt 0:00:58]} Kf7 {[%emt 0:00:47]} 31. Rxe7+ {[%emt 0:01:21]} Kxe7 {[%emt 0:00:08]} 32. Bxc4 {[%emt 0:00:38]} bxc4 $11 {[%emt 0:00:04][%mdl 4096] Endgame KRN-KRN} 33. Nd5+ {[%emt 0:00:03]} Kd6 {[%emt 0:01:09]} 34. Nb6 {[%emt 0:00:33][%csl LRc4,LRc8]} (34. Rd1 $5 {[%cal Rd5b6]} Kc5 35. Nf4 $11) 34... Re8 {[%emt 0:00:04]} 35. Rd1+ {[%emt 0:00:33]} Kc5 {[%emt 0:00:06]} 36. Nd7+ {[%emt 0:00:14]} Kb5 {[%emt 0:00:04]} 37. h4 {[%emt 0:00:25]} Na7 {[%emt 0:01:35] ...Re3 is the strong threat.} 38. Rd6 {[%emt 0:01:14]} ({Better is} 38. Rb1+ $11 Kc6 39. Nb8+ Kd6 40. Rd1+ Kc7 41. Nxa6+ Kb7 42. Nb4) 38... Nc8 $15 {[%emt 0:00:06]} 39. a4+ $2 {[%emt 0:00:35] Now White is beyond hope.} Kxa4 $19 {[%emt 0:00:12]} 40. Rxa6+ {[%emt 0:00:09]} Kb3 {[%emt 0:00:04]} 41. Nf6 {[%emt 0:00:11]} (41. h5 {keeps fighting.}) 41... Rd8 {[%emt 0:00:24]} (41... Re1+ $2 42. Kh2 $19) 42. Nxh7 $2 {[%emt 0:00:12]} (42. Ra5 {was forced.}) 42... Kxc3 {[%emt 0:00:07] Black is clearly winning.} ({Inferior is} 42... Rh8 43. Nf6 $17) 43. Rxg6 {[%emt 0:00:05]} Kd2 {[%emt 0:00:03]} 44. Rc6 {[%emt 0:00:30]} c3 {[%emt 0:00:04]} 45. Kh2 {[%emt 0:00:20]} c2 {[%emt 0:00:08]} 46. Kg3 {[%emt 0:00:04]} Ne7 {[%emt 0:00:10]} ({Weaker is} 46... c1=B 47. h5 $15) 47. Rc5 {[%emt 0:00:11]} Nd5 {[%emt 0:00:10] ( -> ...Nc3)} ({And not} 47... c1=B 48. Rb5 $17) 48. Rxc2+ {[%emt 0:00:13]} Kxc2 {[%emt 0:00:03]} 49. h5 {[%emt 0:00:05]} Rh8 {[%emt 0:00:04] Weighted Error Value: White=0.50/Black=0.04 (flawless)} 0-1

[Event "AI Cup Div-3 2023"]
[Site "Online"]
[Date "2023.09.28"]
[Round "58.1"]
[White "Alekseev, Evgeny"]
[Black "Sevian, Samuel"]
[Result "1/2-1/2"]
[Annotator "TA"]
[ECO "B07"]
[WhiteElo "2573"]
[BlackElo "2698"]
[PlyCount "150"]
[EventDate "2023.09.18"]
[EventType "k.o."]
[EventCountry "NET"]
[SourceTitle "playchess.com"]
[Source "ChessBase"]
[SourceQuality "1"]
[TimeControl "900+3"]

{[%evp 10,150,48,37,53,26,26,29,31,18,18,8,14,19,52,34,32,30,27,36,35,35,37,20,67,65,68,39,54,48,55,33,44,34,39,32,71,50,61,32,69,63,79,107,138,88,72,91,182,85,87,88,91,93,106,64,158,156,174,174,182,175,232,233,237,238,225,173,181,187,195,174,193,172,174,181,241,172,167,156,169,172,172,171,169,145,209,209,267,245,243,197,220,198,306,305,312,296,496,469,491,489,376,172,972,902,977,863,875,836,882,849,929,783,976,0,756,689,758,669,640,590,522,522,442,356,285,101,101,101,101,101,101,101,101,8,101,101,101,101,101,101,101]} 1. e4 {[%emt 0:00:06]} g6 {[%emt 0:00:07]} 2. d4 {[%emt 0:00:02]} Bg7 {[%emt 0:00:00]} 3. Nf3 {[%emt 0:00:02]} d6 {[%emt 0:00:02]} 4. Bd3 {[%emt 0:00:02]} Nf6 {[%emt 0:00:03]} 5. O-O {[%emt 0:00:04]} O-O {[%emt 0:00:01]} 6. Re1 {[%emt 0:00:01]} Nc6 {[%emt 0:00:01] B07: Pirc Defence: Miscellaneous Systems.} 7. d5 {[%emt 0:00:04]} Nb4 {[%emt 0:00:01]} 8. Bf1 {[%emt 0:00:02]} Bg4 {[%emt 0:00:03] White has an edge.} 9. Nbd2 {[%emt 0:00:05]} a5 {[%emt 0:00:01]} 10. h3 {[%emt 0:00:20] [#]} Bxf3 $146 {[%emt 0:01:35]} ({Predecessor:} 10... Bd7 11. c3 Na6 12. Nc4 e6 13. dxe6 Bxe6 14. Bf4 Nc5 15. e5 dxe5 16. Bxe5 Qxd1 17. Rexd1 {½-½ Alekseev,E (2620)-Chatalbashev,B (2542) Ferreira do Alentejo 2nd 2019 (5)}) 11. Nxf3 {[%emt 0:00:05]} c6 {[%emt 0:00:01][%cal Rc6d5]} 12. c3 {[%emt 0:02:17]} Na6 {[%emt 0:00:15]} 13. dxc6 {[%emt 0:00:16]} bxc6 {[%emt 0:00:01]} 14. e5 {[%emt 0:00:03]} Nd5 {[%emt 0:00:14]} 15. exd6 {[%emt 0:00:44]} exd6 {[%emt 0:00:10]} 16. Bg5 {[%emt 0:00:12]} Nf6 {[%emt 0:00:19]} (16... Qc7 $11) 17. Nd4 $14 {[%emt 0:01:55]} Qb6 {[%emt 0:00:31]} 18. Qf3 {[%emt 0:00:32]} (18. Bf4 $5 {[%cal Rf4d6]}) 18... Nd5 {[%emt 0:00:06]} 19. Rad1 {[%emt 0:00:19][%cal Od4c6] Black must now prevent Nxc6!} Nac7 $1 {[%emt 0:00:22]} 20. Bc1 {[%emt 0:00:42]} Rae8 {[%emt 0:00:31]} 21. Nc2 $36 {[%emt 0:00:21][%mdl 2048] White has good play.} Rxe1 {[%emt 0:00:14]} 22. Nxe1 {[%emt 0:00:23]} Ne8 {[%emt 0:01:36]} 23. Nc2 {[%emt 0:00:07]} Ndc7 {[%emt 0:00:21]} 24. Qe3 {[%emt 0:00:54]} Qb7 {[%emt 0:00:25]} 25. Nd4 {[%emt 0:00:11]} a4 {[%emt 0:00:50]} 26. Qe7 {[%emt 0:00:16]} Qa8 {[%emt 0:02:41][%cal Oa4a3]} 27. a3 {[%emt 0:01:04] White has more active pieces.} (27. Qd7 $142 $1) 27... Nd5 $16 {[%emt 0:02:27]} 28. Qd7 {[%emt 0:00:11]} c5 {[%emt 0:00:01]} (28... Bxd4 $16 29. Rxd4 Nb6) 29. Qc6 {[%emt 0:01:32]} (29. Nc6 $18) 29... Nec7 {[%emt 0:00:29]} 30. Qxa8 {[%emt 0:00:02]} Rxa8 {[%emt 0:00:00]} 31. Nb5 {[%emt 0:00:15]} Rd8 {[%emt 0:00:07]} 32. Bc4 {[%emt 0:00:56]} Nxb5 {[%emt 0:00:27]} (32... Nb6 $1 $14) 33. Bxb5 {[%emt 0:00:15]} Nb6 {[%emt 0:00:02] [#]} 34. Bg5 $1 {[%emt 0:00:08]} f6 {[%emt 0:00:12] [#]} 35. Be3 {[%emt 0:00:03] Hoping for Bxc5.} Bf8 {[%emt 0:00:37]} (35... d5 $142 36. Bxc5 Rb8) 36. Bxc5 $18 {[%emt 0:00:03][%mdl 64] Pin} Rb8 {[%emt 0:00:00]} 37. Bd4 {[%emt 0:00:23]} (37. Bxd6 $2 {perishes.} Rd8 38. Rd2 Rxd6 $19) 37... Kf7 {[%emt 0:00:01]} 38. Rd2 {[%emt 0:00:04]} Bh6 {[%emt 0:00:15]} 39. Re2 {[%emt 0:00:04]} d5 {[%emt 0:00:01]} 40. Bc5 {[%emt 0:00:17] Re7+ would be deadly. This pair of bishops is nice.} Bf8 {[%emt 0:00:19]} 41. Bxb6 {[%emt 0:00:16]} Rxb6 {[%emt 0:00:00]} 42. Bxa4 {[%emt 0:00:01][%mdl 4096] Endgame KRB-KRB} Bh6 {[%emt 0:00:01]} (42... f5 $142 43. Be8+ Kf6) 43. Rc2 {[%emt 0:00:04]} Ke7 {[%emt 0:00:08]} 44. Kf1 {[%emt 0:00:02]} f5 {[%emt 0:00:04]} 45. Ke2 {[%emt 0:00:15]} Kd6 {[%emt 0:00:01]} 46. Kd3 {[%emt 0:00:06]} Rb8 {[%emt 0:00:05]} 47. g3 {[%emt 0:00:08]} g5 {[%emt 0:00:12]} (47... Rb7 $16 {keeps fighting.} 48. h4 Re7) 48. Re2 {[%emt 0:00:08]} g4 {[%emt 0:00:01]} 49. hxg4 {[%emt 0:00:02]} fxg4 {[%emt 0:00:00]} 50. Kc2 {[%emt 0:00:05] Prevents Bc1.} Bg7 {[%emt 0:00:05]} 51. Re8 {[%emt 0:00:32]} Rb6 {[%emt 0:00:58]} (51... Rxe8 $142 52. Bxe8 d4) 52. Rg8 {[%emt 0:00:15]} Rb7 {[%emt 0:00:03]} 53. Rd8+ {[%emt 0:00:02]} Ke5 $2 {[%emt 0:00:03]} (53... Ke6 {was necessary.} 54. Bc6 Bf6 55. Bxd5+ Ke5) 54. Rd7 {[%emt 0:00:10]} Rxd7 {[%emt 0:00:13]} 55. Bxd7 {[%emt 0:00:01] KB-KB} h5 {[%emt 0:00:01]} 56. Kd3 {[%emt 0:00:05]} (56. b4 $142) 56... Bh6 $2 {[%emt 0:00:06]} (56... Bf6 57. Be8 h4) 57. b4 {[%emt 0:00:03]} Bg5 {[%emt 0:00:02]} 58. a4 {[%emt 0:00:02]} Kd6 {[%emt 0:00:00]} 59. Bf5 {[%emt 0:00:04]} Bf6 {[%emt 0:00:01]} 60. a5 {[%emt 0:00:03]} Kc6 {[%emt 0:00:01]} 61. Be6 {[%emt 0:00:02] And now c4 would win.} Bd8 {[%emt 0:00:06]} 62. Bf5 $2 {[%emt 0:00:05]} (62. a6 $18 Bb6 63. Bxd5+ Kb5 64. Bc4+ Ka4 65. Ke2) 62... Be7 $2 {[%emt 0:00:02][%mdl 8192]} (62... Bf6 $11 63. c4 h4 64. Bxg4 hxg3 65. fxg3 dxc4+ 66. Kxc4 Kb7) 63. Bc8 {[%emt 0:00:02]} Bf8 {[%emt 0:00:07]} 64. Be6 {[%emt 0:00:04] Strongly threatening Bf7.} Be7 {[%emt 0:00:01]} 65. a6 {[%emt 0:00:02]} Kb6 {[%emt 0:00:04]} 66. Bxd5 {[%emt 0:00:03]} Kxa6 {[%emt 0:00:01]} 67. Kc4 {[%emt 0:00:08]} h4 {[%emt 0:00:04]} 68. Kd3 $2 {[%emt 0:00:04]} (68. Kb3 $18 {and the rest is easy.}) 68... hxg3 $16 {[%emt 0:00:02]} 69. fxg3 {[%emt 0:00:01]} Bd6 {[%emt 0:00:00]} 70. Be6 {[%emt 0:00:01]} Kb6 {[%emt 0:00:01]} 71. Bxg4 {[%emt 0:00:01]} Bxg3 {[%emt 0:00:00]} 72. c4 {[%emt 0:00:03]} ({Better is} 72. Kc2 $16) 72... Bd6 {[%emt 0:00:01]} (72... Be1 $1 $11) 73. Kc3 {[%emt 0:00:00] White is better.} Be7 {[%emt 0:00:01]} 74. Kb3 {[%emt 0:00:01]} Bd6 {[%emt 0:00:00]} 75. Ka4 {[%emt 0:00:01]} Be7 {[%emt 0:00:01] Weighted Error Value: White=0.16 (very precise) /Black=0.24 (precise)} 1/2-1/2

[Event "AI Cup Div-3 2023"]
[Site "Online"]
[Date "2023.09.28"]
[Round "58.2"]
[White "Sevian, Samuel"]
[Black "Alekseev, Evgeny"]
[Result "1-0"]
[Annotator "TA"]
[ECO "A31"]
[WhiteElo "2698"]
[BlackElo "2573"]
[PlyCount "93"]
[EventDate "2023.09.18"]
[EventType "k.o."]
[EventCountry "NET"]
[SourceTitle "playchess.com"]
[Source "ChessBase"]
[SourceQuality "1"]
[TimeControl "900+3"]

{[%evp 10,93,21,0,0,-14,-6,-11,69,55,67,58,73,38,62,39,71,62,70,83,76,73,105,81,108,83,100,84,89,70,126,151,132,127,125,121,129,118,125,110,208,108,113,122,122,97,104,86,97,98,90,50,165,153,325,97,199,178,265,251,352,297,325,293,363,345,340,262,378,377,354,313,526,325,1635,561,927,915,811,841,2093,1154,1125,1111,781,778]} 1. c4 {[%emt 0:00:07]} c5 {[%emt 0:00:08]} 2. Nf3 {[%emt 0:00:03]} Nc6 {[%emt 0:00:01]} 3. d4 {[%emt 0:00:00]} cxd4 {[%emt 0:00:02]} 4. Nxd4 {[%emt 0:00:01]} Qb6 {[%emt 0:00:02]} 5. Nc2 {[%emt 0:00:51]} Nf6 {[%emt 0:00:14]} 6. Nc3 {[%emt 0:00:02]} e6 $1 {[%emt 0:00:02] A31: Symmetrical English: 2 Nf3 Nf6 3 d4.} (6... Ng4 7. e3 Nf6 8. Be2 $14) 7. e4 {[%emt 0:00:17]} Bc5 {[%emt 0:00:55]} 8. Qd2 {[%emt 0:00:02] [#]} Be7 $146 {[%emt 0:01:29]} (8... Ng4 $11 9. Nd1 O-O) ({Predecessor:} 8... O-O 9. Na4 Bb4 10. Nxb6 Bxd2+ 11. Bxd2 axb6 12. Be3 d5 13. exd5 exd5 14. cxd5 Nxd5 {½-½ Artemiev,V (2701)-Caruana,F (2764) Chessable Masters Div 1 Win rapid 2023 (2.1)}) 9. Be2 $14 {[%emt 0:00:10]} O-O {[%emt 0:00:03]} 10. O-O {[%emt 0:00:03]} Qc7 {[%emt 0:00:06]} 11. f4 {[%emt 0:00:14]} d6 {[%emt 0:00:07][%cal Od6d5]} 12. b3 {[%emt 0:00:01]} b6 {[%emt 0:00:05]} 13. Bb2 {[%emt 0:00:03]} Bb7 {[%emt 0:00:01]} 14. Rad1 {[%emt 0:00:17]} Rad8 {[%emt 0:00:03]} 15. Bf3 {[%emt 0:00:05]} Qb8 {[%emt 0:00:09]} 16. Kh1 {[%emt 0:01:08]} Rfe8 {[%emt 0:00:05]} 17. g4 {[%emt 0:00:22][%cal Bg2g4,Bg4g5][%mdl 32]} Bf8 {[%emt 0:00:12][%cal Od6d5]} 18. g5 {[%emt 0:00:05]} Nd7 {[%emt 0:00:01]} 19. Ne3 {[%emt 0:00:06]} a6 {[%emt 0:00:10]} (19... Nc5 $14) 20. Ng4 $16 {[%emt 0:00:57]} e5 {[%emt 0:02:43]} 21. Nd5 {[%emt 0:00:25]} exf4 {[%emt 0:00:12]} 22. Qxf4 {[%emt 0:05:30]} Nce5 {[%emt 0:00:05]} 23. Nge3 {[%emt 0:00:46]} Ng6 {[%emt 0:02:16]} 24. Qg3 {[%emt 0:00:02] White is much more active.} Nc5 {[%emt 0:00:14] [#]} (24... b5 $16) 25. Nf5 {[%emt 0:00:28]} (25. Nxb6 $6 Nxe4 26. Qg1 Nxg5 27. Qxg5 Bxf3+ 28. Rxf3 Qxb6 $14) (25. h4 $1 $18) 25... Bxd5 {[%emt 0:01:38]} 26. exd5 {[%emt 0:00:05]} b5 {[%emt 0:00:03]} 27. cxb5 {[%emt 0:00:09]} Qxb5 {[%emt 0:00:10]} 28. h4 $36 {[%emt 0:00:03][%mdl 2048] Threatens to win with h5. White has strong initiative.} Ne5 {[%emt 0:00:21]} 29. h5 {[%emt 0:00:51][%cal Of5h6] [#] Nh6+! would be deadly.} Qd7 {[%emt 0:00:43]} 30. Bg2 {[%emt 0:00:35]} a5 {[%emt 0:00:07]} (30... g6 $1 $14 31. Ne3 Bg7) 31. Rf4 $18 {[%emt 0:00:42]} Qb7 $2 {[%emt 0:00:22]} (31... g6 $16 {might work better.}) 32. Nd4 $2 {[%emt 0:00:20]} (32. Nh6+ $18 gxh6 33. Rdf1 hxg5 34. Qxg5+ Bg7 35. h6 {[%mdl 64] Pin}) 32... Ra8 {[%emt 0:01:45]} (32... a4 $16) 33. Nc6 {[%emt 0:00:06]} Ncd7 {[%emt 0:00:12]} (33... Qb5 $142) 34. Rdf1 {[%emt 0:00:03]} a4 {[%emt 0:00:29]} (34... Qa6 $142 35. R4f2 Rac8) 35. b4 {[%emt 0:00:02]} (35. Rxa4 Rxa4 36. Bxe5 Rxa2 37. Bxd6 Ree2 $17) 35... a3 {[%emt 0:00:02]} 36. Ba1 {[%emt 0:00:02] This pair of bishops is nice.} (36. Bxa3 Qa6 $16) 36... Rac8 {[%emt 0:00:11]} 37. h6 {[%emt 0:00:13]} (37. Qxa3 Ra8 38. Qb3 Qa6 $18) 37... g6 {[%emt 0:00:06]} 38. Qc3 {[%emt 0:00:01]} (38. Qxa3 Ra8 39. Qb3 Qa6) 38... f6 {[%emt 0:00:13]} (38... Qa6 $142 39. R4f2 Qa4) 39. gxf6 {[%emt 0:00:06] f7+ would kill now.} Nf7 {[%emt 0:00:01]} 40. Bh3 {[%emt 0:00:21]} ({Don't do} 40. Qxa3 Ra8 41. Qb3 Re2 $18) 40... Bxh6 $2 {[%emt 0:00:07]} (40... Re5 {was worth a try.} 41. Rc4 (41. Qxa3 Rh5 $18) 41... Rce8 42. Nxe5 (42. Qxa3 Rh5 $14) 42... Ndxe5) 41. Rc4 {[%emt 0:00:06] Strongly threatening Ne7+.} Bf8 {[%emt 0:00:46] Wards off Ne7+} (41... Kf8) 42. Be6 {[%emt 0:00:20]} (42. Ne7+ $142 Kh8 43. Rxc8 Rxc8 44. Qxc8 Qxc8 45. Nxc8) 42... Rxe6 {[%emt 0:00:12]} 43. dxe6 {[%emt 0:00:00]} Nde5 {[%emt 0:00:01]} 44. exf7+ {[%emt 0:00:07]} Kxf7 {[%emt 0:00:01]} 45. b5 {[%emt 0:00:00]} Qxb5 {[%emt 0:00:07]} 46. Nxe5+ {[%emt 0:00:02]} dxe5 {[%emt 0:00:01]} 47. Rc7+ {[%emt 0:00:09] An entertaining game by Sevian.   Weighted Error Value: White=0.43/Black=0.49} 1-0